bitfinex/quotes_ETHUSD_20250923
["timestamp","ask_amount","ask_price","bid_price","bid_amount"]
[1758625961434,20.79168336,4190.5,4190.4,0.004]
[1758625961634,20.88739466,4190.5,4190.4,0.004]
[1758625961940,20.88760844,4190.5,4190.4,0.004]
[1758625962149,23.33044604,4190.5,4190.4,0.004]
[1758625962912,23.97061918,4190.5,4190.4,0.004]
[1758625963310,23.33044604,4190.5,4190.4,0.004]
[1758625963635,23.33060493,4190.5,4190.4,0.004]
[1758625963930,23.33060489,4190.5,4190.4,0.004]
[1758625964136,23.70474672,4190.5,4190.4,0.004]
[1758625966303,23.97121485,4190.5,4190.4,0.004]
[1758625966735,23.77177523,4190.5,4190.4,0.004]
[1758625969051,30.83097523,4190.5,4190.4,0.004]
[1758625970125,29.50346527,4190.5,4190.4,0.004]
[1758625970330,31.56846527,4190.5,4190.4,0.004]
[1758625971464,19.47350842,4190.5,4190.4,0.6818]
[1758625973546,13.40850842,4190.5,4190.4,0.6818]
[1758625973746,19.47350842,4190.5,4190.4,0.6818]
[1758625976149,13.57569341,4190.5,4190.4,0.6818]
[1758625976574,16.35332943,4190.5,4190.4,0.6818]
[1758625976883,18.7396795,4190.5,4190.4,0.6818]
[1758625977239,16.35332943,4190.5,4190.4,0.6818]
[1758625977478,18.7396795,4190.5,4190.4,0.6818]
[1758625977976,18.7388795,4190.5,4190.4,0.6818]
[1758625978474,16.35252943,4190.5,4190.4,0.6818]
[1758625979376,18.7388795,4190.5,4190.4,0.6818]
[1758625979576,16.35252943,4190.5,4190.4,0.6818]
[1758625979754,18.7388795,4190.5,4190.4,15.1818]
[1758625980480,15.7388795,4190.5,4190.4,15.1818]
[1758625980641,13.35252943,4190.5,4190.4,15.1818]
[1758625980842,9.6738795,4190.5,4190.4,15.1818]
[1758625981055,13.6738795,4190.5,4190.4,15.1818]
[1758625982583,11.28752943,4190.5,4190.4,15.1818]
[1758625982994,7.28752943,4190.5,4190.4,15.1818]
[1758625983157,11.19261813,4190.5,4190.4,15.1818]
[1758625983364,11.19265613,4190.5,4190.4,15.1818]
[1758625983671,0.13345613,4190.5,4190.4,15.1818]
[1758625983869,0.13345613,4190.5,4190.4,17.56820702]
[1758625985168,0.001,4190.8,4190.7,2.38623618]
[1758625985493,0.13437338,4190.8,4190.7,2.38623618]
[1758625985656,0.13437338,4190.8,4190.7,3.03953618]
[1758625986698,0.13437338,4190.8,4190.7,17.53953618]
[1758625988195,0.001,4190.8,4190.7,17.53953618]
[1758625988398,0.13426711,4190.8,4190.7,14.7256]
[1758625988697,0.13426711,4190.8,4190.7,15.1533]
[1758625990938,0.13426711,4190.8,4190.7,17.53953618]
[1758625991099,0.13426711,4190.8,4190.7,15.1533]
[1758625991831,0.13422777,4190.8,4190.7,15.1533]
[1758625993389,0.13422777,4190.8,4190.7,14.5]
[1758625994426,0.13422777,4190.8,4190.7,14.7256]
[1758625996314,0.13422777,4190.8,4190.7,14.5]
[1758625996521,0.13425697,4190.8,4190.7,14.5]
[1758625999949,0.13425697,4190.8,4190.7,15.1788]
[1758626000151,0.13425697,4190.8,4190.7,14.5]
[1758626001847,7.87385697,4190.8,4190.7,14.5]
[1758626002217,8.59145645,4190.8,4190.7,14.5]
[1758626002416,8.14865645,4190.8,4190.7,14.5]
[1758626002739,8.14785645,4190.8,4190.7,14.5]
[1758626002936,12.01259948,4190.8,4190.5,2.3863434]
[1758626003252,0.13343312,4190.7,4190.5,0.6788]
[1758626003553,0.13343312,4190.6,4190.5,2.38635007]
[1758626003953,0.13343312,4190.6,4190.5,3.06515007]
[1758626004920,0.13343312,4190.6,4190.5,0.6788]
[1758626005671,0.13343312,4190.6,4190.4,16.89040156]
[1758626005871,11.77499948,4190.8,4190.4,16.89040156]
[1758626005872,0.13343312,4190.5,4190.4,16.89040156]
[1758626006464,0.13343312,4190.5,4190.4,17.56920156]
[1758626010844,0.13343312,4190.5,4190.4,17.68840156]
[1758626011372,7.0594,4190.8,4190.7,2.38623618]
[1758626011373,0.0002,4190.8,4190.7,2.38623618]
[1758626011529,0.13390727,4190.8,4190.7,2.38623618]
[1758626011735,0.13390727,4190.8,4190.7,6.50343618]
[1758626012440,0.13390727,4190.8,4190.7,4.1172]
[1758626012644,0.13390727,4190.8,4190.7,6.50343618]
[1758626018176,0.13394295,4190.8,4190.7,6.50343618]
[1758626018849,0.13394295,4190.8,4190.7,7.21313618]
[1758626020177,0.13392982,4190.8,4190.7,7.21313618]
[1758626021342,0.0002,4190.8,4190.7,7.21313618]
[1758626021977,0.0002,4190.8,4190.7,21.71313618]
[1758626023864,0.0002,4190.8,4190.7,17.71513618]
[1758626024089,0.0002,4190.8,4190.7,21.00243618]
[1758626024265,0.0002,4190.8,4190.7,22.01623946]
[1758626024568,0.0002,4190.8,4190.7,21.71213618]
[1758626027898,0.0004,4191.3,4191.2,2.38595151]
[1758626028202,0.13399935,4191.3,4191.2,6.38295151]
[1758626028505,0.13399935,4191.3,4191.2,20.88295151]
[1758626031112,0.37109935,4191.3,4191.2,20.88295151]
[1758626031517,0.37109935,4191.3,4191.2,18.497]
[1758626032021,0.37109935,4191.3,4191.2,20.88295151]
[1758626033118,0.37109935,4191.3,4191.2,18.497]
[1758626033523,0.37109935,4191.3,4191.2,20.88295151]
[1758626034332,0.13399935,4191.3,4191.2,20.88295151]
[1758626036126,0.37110392,4191.3,4191.2,18.497]
[1758626036534,0.2375,4191.3,4191.2,20.88295151]
[1758626036899,0.3711119,4191.3,4191.2,20.88295151]
[1758626037112,0.2375,4191.3,4191.2,18.497]
[1758626037331,0.0004,4191.3,4191.2,14.5]
[1758626037533,0.91981669,4191.3,4191.2,14.5]
[1758626037833,1.74774109,4191.3,4191.2,14.5]
[1758626038702,1.01548322,4191.3,4191.2,14.5]
[1758626040127,8.07468322,4191.3,4191.2,14.5]
[1758626042148,8.07468322,4191.3,4190.9,3.996]
[1758626042455,0.84001267,4191.2,4190.9,3.996]
[1758626042748,0.84001267,4191.1,4190.9,3.996]
[1758626042916,0.13361267,4191.0,4190.9,6.40598268]
[1758626043116,0.13361267,4191.0,4190.9,6.38212146]
[1758626043323,0.13361267,4191.0,4190.9,7.20892146]
[1758626043556,0.13361267,4191.0,4190.9,21.00132146]
[1758626046889,0.13361267,4191.0,4190.9,18.6152]
[1758626047039,0.84001267,4191.0,4190.9,21.00132231]
[1758626047487,0.84001267,4191.0,4190.9,17.00532231]
[1758626047644,0.84001267,4191.0,4190.9,21.00032231]
[1758626048065,0.38211267,4191.0,4190.9,21.00032231]
[1758626048650,0.13361267,4191.0,4190.9,21.00032231]
[1758626051876,0.13361267,4191.0,4190.9,21.70792231]
[1758626052766,0.13281267,4191.0,4190.9,21.70792231]
[1758626053356,0.13281267,4191.0,4190.9,18.6142]
[1758626053653,0.13281267,4191.0,4190.9,21.00032231]
[1758626055381,0.13281267,4191.0,4190.9,17.00532231]
[1758626055587,0.13281267,4191.0,4190.9,21.00032231]
[1758626057144,0.13281267,4191.0,4190.9,21.69482231]
[1758626058089,0.13281267,4191.0,4190.9,21.24742231]
[1758626060104,0.13281267,4191.0,4190.9,17.69982231]
[1758626060295,0.13281267,4191.0,4190.9,21.24742231]
[1758626060481,0.13281267,4191.0,4190.9,18.6142]
[1758626060671,0.13281267,4191.0,4190.9,21.00032231]
[1758626065117,0.13381267,4191.0,4190.9,21.69482231]
[1758626067794,0.13381267,4191.0,4190.9,21.24742231]
[1758626068102,0.13381267,4191.0,4190.9,21.00032231]
[1758626069229,0.13381267,4191.0,4190.9,17.00532231]
[1758626069528,34.70174967,4191.0,4190.9,20.99932231]
[1758626071583,34.94264967,4191.0,4190.9,20.99932231]
[1758626071980,34.70174967,4191.0,4190.9,20.99932231]
[1758626072177,34.94264967,4191.0,4190.9,20.99932231]
[1758626074115,34.94264967,4191.0,4190.9,17.00532231]
[1758626074309,34.94264967,4191.0,4190.9,18.6132]
[1758626074516,35.38344967,4191.0,4190.9,18.6132]
[1758626074811,35.38344967,4191.0,4190.9,20.99932231]
[1758626075588,34.94264967,4191.0,4190.9,20.99932231]
[1758626076112,34.70174967,4191.0,4190.9,20.99932231]
[1758626077713,34.70094967,4191.0,4190.9,20.99932231]
[1758626079794,34.70094967,4191.0,4190.9,21.70262231]
[1758626079989,34.70094967,4191.0,4190.9,21.24612231]
[1758626081196,34.70094967,4191.0,4190.9,21.70262231]
[1758626081414,34.70094967,4191.0,4190.9,20.99932231]
[1758626081826,34.568937,4191.0,4190.9,20.99932231]
[1758626082725,34.568937,4191.0,4190.9,14.6192]
[1758626082927,35.250637,4191.0,4190.9,18.6122]
[1758626083520,35.250637,4191.0,4190.9,20.99832231]
[1758626084286,34.568937,4191.0,4190.9,20.99832231]
[1758626088366,35.250637,4191.0,4190.9,20.99832231]
[1758626088551,34.809837,4191.0,4190.9,20.99832231]
[1758626089366,34.568937,4191.0,4190.9,21.58242231]
[1758626089570,34.568937,4191.0,4190.9,21.70162231]
[1758626089765,34.70278709,4191.0,4190.9,21.70162231]
[1758626090636,34.568937,4191.0,4190.9,21.70162231]
[1758626091060,34.568937,4191.0,4190.9,17.70862231]
[1758626091255,34.568937,4191.0,4190.9,20.99732231]
[1758626091455,34.568937,4191.0,4190.9,21.70062231]
[1758626091839,34.568937,4191.0,4190.9,20.99732231]
[1758626092042,34.568937,4191.0,4190.9,21.70062231]
[1758626095526,34.568937,4191.0,4190.9,20.99732231]
[1758626095658,34.568937,4191.0,4190.9,21.70062231]
[1758626095851,26.19188069,4191.0,4190.9,22.37342231]
[1758626096047,26.19188069,4191.0,4190.9,18.50062231]
[1758626096247,26.19188069,4191.0,4190.9,24.10012231]
[1758626096583,26.19188069,4191.0,4190.9,24.55662231]
[1758626099169,26.19188069,4191.0,4190.9,21.78932231]
[1758626099379,26.19188069,4191.0,4190.9,20.99732231]
[1758626100515,26.87358069,4191.0,4190.9,20.99732231]
[1758626100681,26.43278069,4191.0,4190.9,20.99732231]
[1758626101077,26.19188069,4191.0,4190.9,20.99732231]
[1758626101505,26.19288069,4191.0,4190.9,20.99732231]
[1758626101916,26.19288069,4191.0,4190.9,17.00532231]
[1758626102113,26.19288069,4191.0,4190.9,20.99632231]
[1758626102617,26.19208069,4191.0,4190.9,20.99632231]
[1758626104994,26.19208069,4191.0,4190.9,17.00532231]
[1758626105200,26.19208069,4191.0,4190.9,22.46842231]
[1758626105921,26.19208069,4191.0,4190.9,21.78832231]
[1758626106283,26.19208069,4191.0,4190.9,17.79732231]
[1758626106485,26.19208069,4191.0,4190.9,21.78832231]
[1758626112737,0.0004,4191.3,4191.2,2.38595151]
[1758626112952,0.0004,4191.3,4191.2,7.31101102]
[1758626113146,0.0004,4191.3,4191.2,7.96725151]
[1758626113463,0.0004,4191.3,4191.2,22.46725151]
[1758626114154,0.0004,4191.3,4191.2,21.78715151]
[1758626114769,0.6887,4191.3,4191.2,17.00515151]
[1758626114948,0.6887,4191.3,4191.2,20.99515151]
[1758626115152,0.6887,4191.3,4191.2,14.6192]
[1758626115474,0.8225004,4191.3,4191.2,14.5]
[1758626115961,0.82250736,4191.3,4191.2,14.5]
[1758626116331,0.82250736,4191.3,4191.2,16.88595151]
[1758626116530,0.83530736,4191.3,4191.2,14.5]
[1758626117561,0.13420736,4191.3,4191.2,17.00515151]
[1758626117765,0.36650736,4191.3,4191.2,17.00515151]
[1758626118275,0.13420736,4191.3,4191.2,17.00515151]
[1758626118960,0.13420736,4191.3,4191.2,17.24675151]
[1758626119161,0.13420736,4191.3,4191.2,17.00515151]
[1758626120458,0.0004,4191.3,4191.2,17.00515151]
[1758626120778,0.0004,4191.3,4191.2,17.68785151]
[1758626121349,0.0004,4191.3,4191.2,17.44625151]
[1758626121569,0.0004,4191.3,4191.2,17.00515151]
[1758626122841,0.0004,4191.3,4191.2,18.47985151]
[1758626125346,0.0004,4191.3,4191.2,21.47985151]
[1758626127475,0.0008,4191.5,4191.4,3.17783766]
[1758626127786,0.0008,4191.5,4191.4,10.16683766]
[1758626128168,0.0008,4191.5,4191.4,24.66683766]
[1758626128563,0.7019,4191.5,4191.4,19.88583766]
[1758626128795,0.7019,4191.5,4191.4,23.87483766]
[1758626128982,0.0008,4191.5,4191.4,23.87483766]
[1758626130903,0.0008,4191.5,4191.4,25.46873766]
[1758626131093,0.0008,4191.5,4191.4,24.78603766]
[1758626131804,0.0008,4191.5,4191.4,25.45783766]
[1758626134593,0.0008,4191.5,4191.4,25.33863766]
[1758626134780,0.0008,4191.5,4191.4,25.45783766]
[1758626134994,0.0008,4191.5,4191.4,25.55345972]
[1758626135889,1e-08,4191.8,4191.7,6.17766691]
[1758626136077,1e-08,4191.8,4191.7,10.16566691]
[1758626136282,1e-08,4191.8,4191.7,10.28486691]
[1758626136469,1e-08,4191.9,4191.8,5.38561]
[1758626136674,1e-08,4191.9,4191.8,6.05741]
[1758626137100,1e-08,4191.9,4191.8,20.55741]
[1758626137278,1e-08,4191.9,4191.8,19.88561]
[1758626137478,1e-08,4191.9,4191.8,20.67761]
[1758626137680,1e-08,4191.9,4191.8,26.72861]
[1758626139002,1e-08,4191.9,4191.8,27.51961]
[1758626140798,0.67370001,4191.9,4191.8,20.79681]
[1758626140993,0.67370001,4191.9,4191.8,24.78481]
[1758626141403,0.22730001,4191.9,4191.8,24.78481]
[1758626142118,0.22730001,4191.9,4191.8,20.79681]
[1758626142442,0.22730001,4191.9,4191.8,20.00481]
[1758626142443,0.67370001,4191.9,4191.8,20.00481]
[1758626142719,0.67370001,4191.9,4191.8,20.99281]
[1758626143225,0.22730001,4191.9,4191.8,20.99281]
[1758626143598,1e-08,4191.9,4191.8,20.99281]
[1758626144123,0.22730001,4191.9,4191.8,20.99181]
[1758626144309,0.67370001,4191.9,4191.8,20.99181]
[1758626145384,0.67370001,4191.9,4191.8,14.6192]
[1758626145817,0.80723192,4191.9,4191.8,18.487]
[1758626146019,1.12679362,4191.9,4191.8,18.487]
[1758626146928,1.12681315,4191.9,4191.8,18.487]
[1758626148245,3.51236624,4191.9,4191.8,14.5]
[1758626148446,3.53210752,4191.9,4191.8,14.5]
[1758626149517,3.51236624,4191.9,4191.8,14.5]
[1758626149733,1.12681315,4191.9,4191.8,14.5]
[1758626150354,1.12679547,4191.9,4191.8,14.5]
[1758626151148,1.12679547,4191.9,4191.3,3.987]
[1758626151448,3.21260138,4191.8,4191.3,3.987]
[1758626151754,3.21260138,4191.8,4191.4,14.5]
[1758626151755,0.80723376,4191.7,4191.4,14.5]
[1758626151918,0.80723376,4191.7,4191.0,2.39005018]
[1758626151919,0.82697504,4191.6,4191.0,0.004]
[1758626152113,2.38600844,4191.1,4191.0,0.004]
[1758626152360,0.3721346,4191.1,4191.0,0.004]
[1758626152522,1.06477588,4191.1,4191.0,0.004]
[1758626153521,3.45078432,4191.1,4191.0,0.004]
[1758626154039,1.06477588,4191.1,4191.0,0.004]
[1758626155359,0.82697504,4191.1,4191.0,0.004]
[1758626155730,0.15327504,4191.1,4191.0,0.004]
[1758626155936,3.988,4191.7,4191.0,0.004]
[1758626156131,0.1192,4191.4,4191.0,0.02786065]
[1758626156438,0.36060603,4191.3,4191.0,0.02786065]
[1758626156659,0.2273,4191.2,4191.0,0.02786065]
[1758626156954,0.2273,4191.2,4191.0,2.41391033]
[1758626157159,0.2273,4191.5,4191.1,2.50520777]
[1758626157357,0.80696532,4191.4,4191.1,6.49320777]
[1758626157523,0.36056532,4191.3,4191.1,4.1072]
[1758626157725,0.2273,4191.2,4191.1,4.1072]
[1758626158365,0.6737,4191.2,4191.1,4.1072]
[1758626159563,0.6737,4191.2,4191.0,0.004]
[1758626159564,0.80693146,4191.2,4191.0,3.992]
[1758626159721,0.6737,4191.1,4191.0,3.992]
[1758626160554,0.2273,4191.1,4191.0,3.992]
[1758626161659,0.6693,4191.1,4191.0,3.992]
[1758626162563,0.2273,4191.1,4191.0,3.992]
[1758626162725,0.1192,4191.6,4191.0,3.992]
[1758626162928,0.15297678,4191.5,4191.0,6.3780459]
[1758626163279,0.8173355,4191.4,4191.0,3.992]
[1758626163483,0.1332355,4191.3,4191.0,3.992]
[1758626163654,0.2421,4191.3,4191.0,3.992]
[1758626163982,0.6841,4191.3,4191.0,3.992]
[1758626164183,0.442,4191.3,4191.0,3.992]
[1758626164491,0.2421,4191.2,4191.0,3.992]
[1758626164784,0.2421,4191.2,4191.0,6.37804252]
[1758626165143,0.2421,4191.2,4191.1,14.5]
[1758626166278,0.81727692,4191.2,4191.1,14.5]
[1758626166488,3.64470859,4191.2,4191.1,14.5]
[1758626166688,3.51153167,4191.2,4191.1,14.5]
[1758626166862,3.64471653,4191.2,4191.1,14.5]
[1758626167189,7.63271653,4191.2,4191.1,14.5]
[1758626167396,2.38600844,4191.1,4191.0,0.004]
[1758626167558,3.54080141,4191.1,4191.0,0.004]
[1758626167760,4.22490141,4191.1,4191.0,0.004]
[1758626170908,7.44702848,4191.1,4191.0,0.004]
[1758626171234,7.4272872,4191.1,4191.0,0.004]
[1758626172035,7.93900464,4191.1,4191.0,0.004]
[1758626172382,8.73100464,4191.1,4191.0,0.004]
[1758626173508,17.22520464,4191.1,4191.0,0.004]
[1758626174027,17.09195739,4191.1,4191.0,0.004]
[1758626174225,17.2251962,4191.1,4191.0,0.004]
[1758626174387,17.22519845,4191.1,4191.0,0.004]
[1758626174707,27.07484641,4191.1,4191.0,0.004]
[1758626175908,27.79260213,4191.1,4191.0,0.004]
[1758626177109,20.73340213,4191.1,4191.0,0.004]
[1758626177611,20.73342174,4191.1,4191.0,0.004]
[1758626177778,20.73262174,4191.1,4191.0,0.004]
[1758626177978,24.72062174,4191.1,4191.0,0.004]
[1758626178180,26.78462174,4191.1,4191.0,0.004]
[1758626181079,26.78462174,4191.1,4190.8,1e-08]
[1758626181080,4.61312231,4190.9,4190.8,1e-08]
[1758626181413,3.17829313,4190.6,4190.5,0.004]
[1758626181616,22.33778135,4190.6,4190.5,0.004]
[1758626181816,23.02174007,4190.6,4190.5,1e-08]
[1758626182020,8.69622971,4190.6,4190.5,1e-08]
[1758626182317,0.13323881,4190.6,4190.5,0.24900001]
[1758626182480,0.13323881,4190.6,4190.5,0.68710001]
[1758626182825,0.13323881,4190.6,4190.5,3.07345008]
[1758626182979,0.13323881,4190.6,4190.5,17.57345008]
[1758626183179,0.001,4191.2,4191.1,2.38600844]
[1758626183396,0.001,4191.2,4191.1,2.50520844]
[1758626183721,0.001,4191.2,4191.1,3.21616852]
[1758626183895,0.13430006,4191.2,4191.1,0.6871]
[1758626184422,0.001,4191.2,4191.1,3.07310844]
[1758626184991,0.13428943,4191.2,4191.1,0.6871]
[1758626185309,0.13428943,4191.2,4191.1,3.07310844]
[1758626185898,0.13428943,4191.2,4191.1,0.6871]
[1758626186643,0.13428943,4191.2,4190.8,0.1192]
[1758626186799,0.40143071,4191.1,4190.5,14.50000001]
[1758626187002,0.13328943,4191.0,4190.6,0.6871]
[1758626187201,0.13328943,4190.9,4190.7,0.6871]
[1758626187435,0.13328943,4190.8,4190.5,14.50000001]
[1758626187638,0.001,4191.2,4190.5,16.88634408]
[1758626187933,0.13331853,4191.1,4190.7,2.38619435]
[1758626188141,0.13331853,4191.0,4190.8,0.6871]
[1758626188289,0.001,4191.2,4190.9,0.6871]
[1758626188490,0.13332928,4191.1,4190.5,14.50000001]
[1758626188735,0.15307056,4191.0,4190.6,0.249]
[1758626189042,0.13332928,4190.9,4190.7,0.6871]
[1758626189237,0.01974128,4191.0,4190.7,0.6871]
[1758626189238,0.13332928,4190.8,4190.7,0.6871]
[1758626189997,0.13332928,4190.8,4190.7,3.07333618]
[1758626190206,0.13334201,4190.8,4190.7,0.6871]
[1758626190431,3.99,4191.2,4190.7,0.6871]
[1758626190729,0.1333422,4191.1,4190.7,0.6871]
[1758626190925,0.1333422,4191.0,4190.8,0.6871]
[1758626191134,0.1333422,4190.9,4190.7,2.38622792]
[1758626191309,3.99,4191.2,4190.6,2.38628157]
[1758626191511,3.99,4191.2,4190.5,14.50000001]
[1758626191512,0.13334967,4191.1,4190.5,14.50000001]
[1758626191849,0.13334967,4191.1,4190.5,15.17850001]
[1758626191850,0.15309095,4191.0,4190.5,15.17850001]
[1758626192044,0.13334967,4190.9,4190.6,0.6785]
[1758626192203,0.13334967,4190.8,4190.5,14.50000001]
[1758626192532,0.13333894,4190.7,4190.5,14.50000001]
[1758626192848,0.13333894,4190.6,4190.5,14.50000001]
[1758626193054,2.75453207,4190.6,4190.5,14.50000001]
[1758626193218,3.45155802,4190.6,4190.5,1e-08]
[1758626193732,3.4712993,4190.6,4190.5,1e-08]
[1758626194597,6.4712993,4190.6,4190.5,1e-08]
[1758626194951,6.67376146,4190.6,4190.5,1e-08]
[1758626195094,6.00845802,4190.6,4190.5,1e-08]
[1758626195300,12.06545802,4190.6,4190.5,1e-08]
[1758626196349,12.7307974,4190.6,4190.5,1e-08]
[1758626198048,12.50855802,4190.6,4190.5,1e-08]
[1758626198550,12.06545802,4190.6,4190.5,1e-08]
[1758626199125,12.50855802,4190.6,4190.5,1e-08]
[1758626199339,12.50857015,4190.6,4190.5,1e-08]
[1758626199733,12.06547015,4190.6,4190.5,1e-08]
[1758626200923,9.5106442,4190.6,4190.5,0.67850001]
[1758626201120,0.13335107,4190.6,4190.5,0.67850001]
[1758626201653,0.13335107,4190.6,4190.5,15.17850001]
[1758626201955,0.13335107,4190.6,4190.5,17.56485008]
[1758626202253,3.993,4191.2,4190.8,2.38617672]
[1758626202454,0.13257847,4191.1,4190.7,2.38622557]
[1758626202780,3.993,4191.2,4190.9,3.06462101]
[1758626203064,3.993,4191.2,4191.0,0.6785]
[1758626203225,3.993,4191.2,4191.1,0.6785]
[1758626203747,0.001,4191.2,4191.1,0.6785]
[1758626204123,0.001,4191.2,4191.1,3.06450844]
[1758626204559,0.001,4191.2,4191.1,0.6785]
[1758626204773,0.001,4191.2,4191.1,17.56450844]
[1758626205678,0.001,4191.2,4191.1,15.1785]
[1758626205849,0.001,4191.2,4191.1,17.56450844]
[1758626206644,0.001,4191.2,4191.1,15.1785]
[1758626207574,0.001,4191.2,4191.1,17.56450844]
[1758626209477,0.001,4191.2,4191.1,17.68370844]
[1758626209777,0.001,4191.2,4191.1,18.47570844]
[1758626210275,0.001,4191.2,4191.1,21.47570844]
[1758626210756,0.001,4191.2,4191.1,20.68370844]
[1758626211141,0.001,4191.2,4191.1,21.47570844]
[1758626211554,0.001,4191.7,4191.6,3.17772382]
[1758626211780,0.001,4191.7,4191.6,12.37578105]
[1758626212081,0.001,4191.7,4191.6,13.03042382]
[1758626212284,0.001,4191.7,4191.6,27.53042382]
[1758626215688,0.001,4191.7,4191.6,20.68342382]
[1758626215904,0.001,4191.7,4191.6,26.73642382]
[1758626216184,0.001,4191.7,4191.6,20.99392382]
[1758626218053,0.001,4191.7,4191.6,21.67242382]
[1758626218488,0.001,4191.7,4191.6,21.24312382]
[1758626218868,0.001,4191.7,4191.6,21.67242382]
[1758626219886,0.001,4191.7,4191.6,20.99392382]
[1758626220756,0.001,4191.7,4191.6,21.42322382]
[1758626220958,0.001,4191.7,4191.6,21.67242382]
[1758626221167,0.001,4191.7,4191.6,22.46442382]
[1758626221371,0.001,4191.7,4191.6,25.46442382]
[1758626225185,0.001,4191.7,4191.6,24.78592382]
[1758626225959,0.001,4191.7,4191.6,25.46682382]
[1758626226694,0.001,4191.7,4191.6,21.47782382]
[1758626226894,0.001,4191.7,4191.6,27.52782382]
[1758626227602,0.0002,4191.7,4191.6,27.52782382]
[1758626227763,0.0002,4191.7,4191.6,20.79692382]
[1758626228096,0.0002,4191.7,4191.6,26.84592382]
[1758626228408,0.0002,4191.7,4191.6,27.07122382]
[1758626228608,0.0002,4191.7,4191.6,17.00492382]
[1758626228774,0.0002,4191.7,4191.6,20.87172382]
[1758626232400,0.2289,4191.7,4191.6,20.87372382]
[1758626232603,0.6608,4191.7,4191.6,20.87372382]
[1758626232898,0.0002,4191.7,4191.6,20.87372382]
[1758626235304,0.2289,4191.7,4191.6,20.87372382]
[1758626237327,0.0002,4191.7,4191.6,20.87372382]
[1758626238631,0.0002,4191.7,4191.6,20.99292382]
[1758626239130,0.0002,4191.7,4191.6,20.99092382]
[1758626239831,0.2453,4191.7,4191.6,20.99092382]
[1758626240028,0.0002,4191.7,4191.6,20.99092382]
[1758626241398,0.0002,4191.7,4191.6,21.68212382]
[1758626241803,0.0002,4191.7,4191.6,20.99092382]
[1758626242602,0.0002,4191.7,4191.6,21.23172382]
[1758626244434,0.0002,4191.7,4191.6,20.99092382]
[1758626244797,0.0002,4191.7,4191.6,21.68212382]
[1758626245531,0.0002,4191.7,4191.6,21.56292382]
[1758626245732,0.0002,4191.7,4191.6,22.35492382]
[1758626246505,0.0002,4191.7,4191.6,25.35492382]
[1758626246805,0.0002,4191.7,4191.6,25.35892382]
[1758626247647,0.02,4192.9,4192.2,3.17738237]
[1758626247939,0.02,4192.9,4192.2,12.22638237]
[1758626248237,0.02,4192.9,4192.7,3.1770979]
[1758626248545,0.02,4192.9,4192.7,10.18694887]
[1758626248837,0.02,4192.9,4192.7,25.3542979]
[1758626249337,0.2651,4193.9,4192.9,3.17698413]
[1758626249566,0.2651,4193.9,4192.9,7.17013801]
[1758626249773,0.2651,4193.9,4192.9,7.85418413]
[1758626250063,0.4657,4193.9,4192.9,22.35418413]
[1758626250251,0.2451,4193.8,4192.9,22.35418413]
[1758626252264,0.0002,4193.0,4192.9,22.35418413]
[1758626252827,0.239,4193.0,4192.9,23.87098413]
[1758626253261,0.0002,4193.0,4192.9,23.87098413]
[1758626254033,0.6825,4193.0,4192.9,23.87098413]
[1758626254365,0.6825,4193.0,4192.9,16.88498413]
[1758626254567,0.6825,4193.0,4192.9,14.5]
[1758626254931,3.22049111,4193.0,4192.9,14.5]
[1758626255265,3.22049111,4193.0,4192.0,2.063]
[1758626255266,3.33969111,4193.0,4192.6,3.987]
[1758626255464,1.97002873,4192.9,4192.6,3.987]
[1758626255660,0.15306386,4192.8,4192.7,14.5]
[1758626255864,0.83536386,4192.8,4192.7,14.5]
[1758626256159,3.22040488,4192.8,4192.7,14.5]
[1758626257537,0.83536386,4192.8,4192.7,14.5]
[1758626258063,3.22040488,4192.8,4192.7,14.5]
[1758626259672,3.79287812,4192.8,4192.7,14.5]
[1758626260168,3.79287812,4192.8,4192.4,3.986]
[1758626260373,0.81562258,4192.7,4192.4,3.986]
[1758626260671,0.81562258,4192.6,4192.5,14.5]
[1758626261436,0.13332258,4192.6,4192.5,14.5]
[1758626261760,0.37212258,4192.6,4192.5,14.5]
[1758626262072,0.0002,4193.0,4192.6,2.38515479]
[1758626262372,0.81564205,4192.9,4191.5,0.792]
[1758626262672,0.1530834,4192.8,4192.7,14.5]
[1758626262869,0.3918834,4192.8,4192.7,14.5]
[1758626263074,0.8353834,4192.8,4192.7,14.5]
[1758626263273,0.81564212,4192.8,4192.7,14.5]
[1758626266573,0.81564212,4192.8,4192.5,2.265]
[1758626266872,0.81564212,4192.7,4192.6,14.5]
[1758626268576,0.81564212,4192.7,4192.6,14.504]
[1758626269272,7.0592,4192.9,4192.6,16.88915479]
[1758626269475,0.13340976,4192.8,4192.7,3.986]
[1758626269662,7.0592,4192.9,4192.7,4.00985097]
[1758626269981,0.13341076,4192.8,4192.7,3.986]
[1758626270673,0.13341076,4192.8,4192.7,18.486]
[1758626273268,0.37221076,4192.8,4192.7,18.486]
[1758626274865,0.37221076,4192.8,4192.7,14.5]
[1758626275048,2.3850979,4192.7,4192.6,0.004]
[1758626275253,3.20082118,4192.7,4192.6,0.004]
[1758626275746,0.81572328,4192.7,4192.6,0.004]
[1758626277964,0.13262328,4192.7,4192.6,0.004]
[1758626278345,0.13262328,4192.7,4192.6,0.4493]
[1758626278546,0.13262328,4192.7,4192.6,0.7959]
[1758626278765,0.13262328,4192.7,4192.6,2.53220633]
[1758626278962,0.13262328,4192.7,4192.6,17.03220633]
[1758626279281,7.0592,4192.9,4192.6,17.23574777]
[1758626279493,7.0592,4192.9,4192.7,6.37105324]
[1758626279697,7.0592,4192.9,4192.8,0.02385041]
[1758626279912,0.0002,4193.0,4192.8,0.02385041]
[1758626280114,0.0002,4193.0,4192.9,20.87098413]
[1758626280412,0.0002,4193.0,4192.9,21.66288413]
[1758626280991,0.0002,4193.0,4192.9,18.6052]
[1758626281311,0.6825,4193.0,4192.9,18.486]
[1758626281704,0.239,4193.0,4192.9,18.486]
[1758626283997,0.239,4193.0,4192.9,14.5]
[1758626283998,3.09652725,4193.0,4192.9,14.5]
[1758626284199,3.09652725,4193.0,4192.6,0.004]
[1758626284200,0.1194,4193.0,4192.6,0.004]